[Event "Croatian 1B League 2022"]
[Site "Porec"]
[Date "2022.10.02"]
[Round "9.15"]
[White "Cabarkapa, Novak"]
[Black "Bukal, Vladimir Jr."]
[Result "1-0"]
[ECO "B28"]
[WhiteElo "2433"]
[BlackElo "2411"]
[Annotator "TA"]
[PlyCount "91"]
[EventDate "2022.09.24"]
[EventType "team-tourn"]
[EventCountry "CRO"]
[SourceTitle "playchess.com"]
[Source "ChessBase"]
[SourceQuality "1"]
[TimeControl "40/5400+30:1800+30"]

{[%evp 9,91,43,44,54,44,54,50,52,44,16,39,20,41,49,41,27,41,31,29,36,42,41,39,35,53,70,114,115,119,112,109,112,77,97,130,114,149,157,136,123,116,81,160,153,289,279,308,305,362,353,371,364,401,402,445,438,441,397,528,590,586,582,584,570,591,575,562,508,507,0,0,0,0,0,0,0,0,0,616,608,600,592,1264,1007]} 1. e4 {[%emt 0:00:03]} c5 {[%emt 0:00:05][%cal Bc7c5,Bc5d4][%mdl 32]} 2. Nf3 {[%emt 0:00:07]} a6 {[%emt 0:00:04]} 3. c3 {[%emt 0:00:08][%cal Bc2c3,Bc3c4][%mdl 32]} d5 {[%emt 0:00:12]} 4. exd5 {[%emt 0:00:10]} Nf6 {[%emt 0:00:05]} 5. d4 {[%emt 0:00:10]} cxd4 {[%emt 0:00:09]} 6. Qa4+ {[%emt 0:00:08] B28: Sicilian: 2 Nf3 a6 (O'Kelly Variation).} Qd7 {[%emt 0:07:05]} 7. Qxd7+ {[%emt 0:00:21]} Nbxd7 {[%emt 0:00:07][%cal Bb8d7,Bd7c5,Bc5d3][%mdl 32]} 8. c4 {[%emt 0:00:14] White is slightly better.} b5 {[%emt 0:03:36]} 9. cxb5 {[%emt 0:00:20]} Nxd5 {[%emt 0:02:01]} 10. Nxd4 {[%emt 0:00:14]} e5 {[%emt 0:01:10]} 11. Nc2 {[%emt 0:00:07]} Nc5 {[%emt 0:07:48]} 12. bxa6 {[%emt 0:00:21]} Bxa6 {[%emt 0:01:24]} 13. Bxa6 {[%emt 0:00:07]} Rxa6 {[%emt 0:00:04]} 14. Ke2 {[%emt 0:00:24] Against Nd3} e4 {[%emt 0:04:05] [#]} 15. Rd1 $146 {[%emt 0:05:35]} ({Predecessor:} 15. Nc3 Nxc3+ 16. bxc3 Na4 17. Bd2 Rc6 18. Nd4 Rc8 19. Rhe1 Ba3 20. Kf1 O-O 21. Rxe4 {½-½ (56) Petrov,M (2439)-Nikolov,M (2522) Cattolica 2021}) 15... Nd3 {[%emt 0:00:45]} 16. Nc3 {[%emt 0:14:09]} Nxc3+ {[%emt 0:06:24]} 17. bxc3 {[%emt 0:00:50]} Rc6 {[%emt 0:05:59]} 18. Bd2 {[%emt 0:06:53]} Bc5 {[%emt 0:09:52]} 19. Nb4 {[%emt 0:07:36]} Rg6 {[%emt 0:18:37]} 20. Nxd3 {[%emt 0:15:20]} exd3+ {[%emt 0:00:18]} 21. Kf1 {[%emt 0:02:27]} Rf6 {[%emt 0:00:34] Prevents Bf4.} 22. f3 {[%emt 0:07:56]} Rd6 {[%emt 0:08:10]} 23. Bf4 {[%emt 0:03:13]} Rd8 {[%emt 0:08:52]} 24. Rab1 {[%emt 0:15:41]} O-O {[%emt 0:01:20]} 25. Rb5 {[%emt 0:00:03]} Ba7 {[%emt 0:00:06]} (25... Bd6 $142) 26. c4 {[%emt 0:02:27][%cal Bc3c4,Bc4c5][%mdl 32]} Rc8 {[%emt 0:08:28]} (26... f6 $16 27. a4 Rfe8) 27. Bd6 $1 $18 {[%emt 0:00:44]} ({Weaker is} 27. Rxd3 Rxc4 28. Rd7 Bd4 $16) 27... Rfd8 {[%emt 0:00:12]} 28. c5 {[%emt 0:00:33]} ({Worse is} 28. Rxd3 Bc5 $1 29. Bxc5 Rxd3 $17) 28... f6 {[%emt 0:00:04]} 29. a4 {[%emt 0:04:38]} Rd7 {[%emt 0:00:41]} 30. Ke1 {[%emt 0:01:02]} h5 {[%emt 0:02:12]} 31. Kd2 {[%emt 0:00:54]} Rc6 {[%emt 0:00:46]} 32. Rdb1 {[%emt 0:01:28]} Kh7 {[%emt 0:01:28]} 33. a5 {[%emt 0:01:56]} h4 {[%emt 0:01:41]} 34. R1b4 {[%emt 0:00:32]} h3 {[%emt 0:00:30]} 35. gxh3 {[%emt 0:01:51]} Kg6 {[%emt 0:00:41]} 36. Rb3 {[%emt 0:00:47]} Rd8 {[%emt 0:01:10]} 37. Rxd3 {[%emt 0:00:38]} Rh8 {[%emt 0:00:10]} 38. Rc3 {[%emt 0:05:19]} Rh5 {[%emt 0:00:28] [#]} 39. Kc2 $2 {[%emt 0:01:36]} (39. Rb6 $1 $18 Rd5+ (39... Rc8 40. Rb7) 40. Rd3 Bxb6 41. axb6 Rdxc5 42. Bxc5 Rxc5 43. Rb3) 39... Rxd6 $11 {[%emt 0:01:04]} 40. cxd6 {[%emt 0:00:00] White threatens Rxh5 and mate.} Rxb5 {[%emt 0:00:00][%mdl 4096] Endgame KRB-KR} 41. d7 {[%emt 0:00:49]} Rd5 {[%emt 0:00:09]} 42. Rc7 {[%emt 0:04:31]} Bg1 {[%emt 0:10:30]} 43. a6 {[%emt 0:00:55]} Bxh2 $2 {[%emt 0:00:11][%mdl 8192]} (43... Kf5 $11) 44. a7 $18 {[%emt 0:01:31] White is clearly winning.} ({Stronger than} 44. Rb7 Bg1 $11) 44... Bxc7 {[%emt 0:00:17]} 45. a8=Q {[%emt 0:00:06]} Rxd7 {[%emt 0:00:06]} 46. Qe8+ {[%emt 0:01:56] Weighted Error Value: White=0.15 (very precise) /Black=0.41} 1-0

[Event "Croatian 1B League 2022"]
[Site "Porec"]
[Date "2022.10.02"]
[Round "9.16"]
[White "Blazeka, Matej"]
[Black "Vojak, Daniel"]
[Result "0-1"]
[ECO "B55"]
[WhiteElo "2331"]
[BlackElo "2300"]
[Annotator "TA"]
[PlyCount "108"]
[EventDate "2022.09.24"]
[EventType "team-tourn"]
[EventCountry "CRO"]
[SourceTitle "playchess.com"]
[Source "ChessBase"]
[SourceQuality "1"]
[TimeControl "40/5400+30:1800+30"]

{[%evp 11,108,4,11,20,8,4,5,9,8,0,9,13,18,12,31,18,41,13,0,6,0,-7,0,0,-7,0,0,0,0,16,0,0,0,0,0,0,0,-27,-1,-4,0,0,0,-8,5,10,8,9,10,10,14,0,0,0,5,0,8,0,18,16,40,10,8,10,331,337,306,6,6,0,0,0,0,0,0,-89,-101,-97,-95,-242,-239,-276,-110,-831,-865,-859,-859,-866,-814,-866,-859,-883,-875,-984,-959,-883,-859,-867,-857]} 1. e4 {[%emt 0:00:10]} c5 {[%emt 0:00:07]} 2. Nf3 {[%emt 0:00:06]} d6 {[%emt 0:00:07]} 3. d4 {[%emt 0:00:05]} cxd4 {[%emt 0:00:05]} 4. Nxd4 {[%emt 0:00:02]} Nf6 {[%emt 0:00:07]} 5. f3 {[%emt 0:00:05]} e5 {[%emt 0:00:46]} 6. Nb3 {[%emt 0:00:08]} d5 {[%emt 0:00:08]} 7. Bg5 {[%emt 0:00:25] B55: Sicilian: 2...d6 3 d4 cxd4 4 Nxd4 Nf6 5 f3.} d4 {[%emt 0:01:17]} 8. c3 {[%emt 0:00:19][%cal Rc3d4]} Nc6 {[%emt 0:00:09]} 9. Bb5 {[%emt 0:03:25] The position is equal. 9.cxd4 might become the main line.} h6 {[%emt 0:00:59]} 10. Bh4 {[%emt 0:04:14] White wants to play cxd4.} Qb6 {[%emt 0:00:55]} 11. Bc4 {[%emt 0:12:35]} Be6 {[%emt 0:05:48]} 12. Bxe6 {[%emt 0:02:49]} fxe6 {[%emt 0:00:45]} 13. Bf2 {[%emt 0:04:34] [#]} Rd8 $146 {[%emt 0:05:35]} ({Predecessor:} 13... Qa6 14. N1d2 O-O-O 15. c4 Bd6 16. Nc1 Bb4 17. Nd3 Qxc4 18. Nxb4 Qxb4 19. O-O Qxb2 {1-0 (39) Gunduz,U (2107)-Bulduk,I (1920) Ankara 2017}) 14. N1d2 {[%emt 0:01:18]} Be7 {[%emt 0:08:44]} 15. O-O {[%emt 0:04:11][%cal Of3f4]} Qa6 {[%emt 0:07:37]} 16. Re1 {[%emt 0:02:11]} O-O {[%emt 0:02:39]} 17. Qe2 {[%emt 0:06:07]} Qxe2 {[%emt 0:04:26]} 18. Rxe2 {[%emt 0:00:04]} Nh5 {[%emt 0:00:34]} 19. g3 {[%emt 0:01:27] Inhibits Nf4.} Rd7 {[%emt 0:04:42]} 20. Rc1 {[%emt 0:05:42]} Rfd8 {[%emt 0:06:06]} 21. cxd4 {[%emt 0:10:11]} exd4 {[%emt 0:02:12]} 22. Nc5 {[%emt 0:01:54]} Bxc5 {[%emt 0:00:51]} 23. Rxc5 {[%emt 0:00:04]} Nf6 {[%emt 0:00:26]} 24. a3 {[%emt 0:03:03]} Rc7 {[%emt 0:15:41]} 25. f4 {[%emt 0:07:11]} Nd7 {[%emt 0:02:47]} 26. Rc1 {[%emt 0:00:58]} e5 {[%emt 0:00:44]} 27. Kg2 {[%emt 0:05:06]} Rdc8 {[%emt 0:05:23]} 28. Nf3 {[%emt 0:01:24]} exf4 {[%emt 0:06:46]} 29. gxf4 {[%emt 0:00:23]} d3 {[%emt 0:00:17]} 30. Re3 {[%emt 0:13:03]} Nf6 {[%emt 0:00:14]} 31. Bh4 {[%emt 0:00:14]} Nh5 {[%emt 0:00:49]} 32. Bg3 {[%emt 0:00:31]} Rd7 {[%emt 0:02:09]} 33. Rd1 {[%emt 0:01:12]} Rcd8 {[%emt 0:01:51]} 34. f5 {[%emt 0:03:36]} g6 {[%emt 0:01:35]} 35. fxg6 {[%emt 0:03:59]} Kg7 {[%emt 0:00:35]} 36. e5 {[%emt 0:02:20]} Kxg6 {[%emt 0:01:55]} 37. e6 {[%emt 0:00:17]} Re7 {[%emt 0:01:05][%mdl 8192] [#]} (37... Rd5 $11 {and Black has nothing to worry.}) 38. Bh4 $1 $18 {[%emt 0:01:10]} (38. Rdxd3 Rxd3 39. Rxd3 Rxe6 $11) 38... Nf6 {[%emt 0:00:47]} (38... Nf4+ $2 39. Kg3 Nh5+ 40. Kg4 (40. Kf2 Nf6 $14) 40... Nf6+ 41. Kh3 $18) 39. Nd2 $2 {[%emt 0:01:20]} ({Better is} 39. Kh3 $18) 39... Rd4 $1 $11 {[%emt 0:02:07]} 40. Kh3 {[%emt 0:00:00] aiming for Rg1+.} Nd5 {[%emt 0:00:00]} 41. Rg1+ {[%emt 0:20:52]} ({But not} 41. Rg3+ $2 Kh5 42. Kg2 Rxh4 $19) 41... Kh5 $1 {[%emt 0:11:19]} 42. Bxe7 {[%emt 0:00:51]} Nxe3 {[%emt 0:00:20] Pair of Knights!} 43. Bf6 {[%emt 0:03:33]} (43. Re1 $11 Nxe7 44. Rxe3) 43... Rd6 $17 {[%emt 0:02:22]} 44. e7 {[%emt 0:03:09][%cal Re7e8]} Re6 {[%emt 0:01:19]} 45. Rg7 {[%emt 0:02:33] [#]} (45. Rg8 $17 Nxe7 46. Bxe7 Rxe7 47. Rd8) 45... Nf5 $1 $19 {[%emt 0:01:38]} ({Worse is} 45... Nd5 46. Nf1 Nf4+ 47. Kg3 $11) 46. Rg1 {[%emt 0:04:04]} Nfxe7 $2 {[%emt 0:01:34]} (46... Re3+ $19 47. Kg2 Ncxe7 48. Bxe7 Rxe7) 47. Nf1 $2 {[%emt 0:00:26][%mdl 8192]} Rxf6 {[%emt 0:00:33] Black is clearly winning.} 48. Ng3+ {[%emt 0:00:16]} Kg6 {[%emt 0:00:05]} 49. Ne4+ {[%emt 0:00:12]} Kf7 {[%emt 0:00:06]} 50. Nxf6 {[%emt 0:00:09]} Kxf6 {[%emt 0:00:05]} 51. Kg4 {[%emt 0:00:23]} Nd5 {[%emt 0:00:59] Threatens to win with ...Ne5+.} 52. Kf3 {[%emt 0:00:12]} Kf5 {[%emt 0:00:32]} 53. Kf2 {[%emt 0:00:55]} Ne5 {[%emt 0:02:57]} 54. Rg7 {[%emt 0:00:18]} Nc4 {[%emt 0:01:43] Black used his chance.  Weighted Error Value: White=0.39/Black=0.19 (very precise)} 0-1

[Event "Croatian 1B League 2022"]
[Site "Porec"]
[Date "2022.10.02"]
[Round "9.17"]
[White "Cupic, Lovro"]
[Black "Brumen, Dinko"]
[Result "1/2-1/2"]
[ECO "B32"]
[WhiteElo "2216"]
[BlackElo "2299"]
[Annotator "TA"]
[PlyCount "91"]
[EventDate "2022.09.24"]
[EventType "team-tourn"]
[EventCountry "CRO"]
[SourceTitle "playchess.com"]
[Source "ChessBase"]
[SourceQuality "1"]
[TimeControl "40/5400+30:1800+30"]

{[%evp 11,91,32,27,29,34,21,23,24,22,20,22,9,14,22,21,21,21,0,21,-13,13,-34,-8,0,16,0,20,0,0,0,0,0,0,0,0,0,0,0,0,0,0,0,0,0,0,0,0,0,0,0,0,0,17,15,24,15,38,0,0,0,0,0,375,0,0,0,0,0,0,0,0,0,0,0,0,0,0,0,0,0,0,0]} 1. e4 {[%emt 0:00:03]} c5 {[%emt 0:00:19]} 2. Nf3 {[%emt 0:00:25][%cal Bg1f3,Bf3d4,Bd4b5,Bb5c3,Bc3d5][%mdl 32]} Nc6 {[%emt 0:00:14]} 3. d4 {[%emt 0:00:52]} cxd4 {[%emt 0:00:06]} 4. Nxd4 {[%emt 0:00:07]} e5 {[%emt 0:00:10]} 5. Nb5 {[%emt 0:00:45]} d6 {[%emt 0:00:49]} 6. c4 {[%emt 0:00:07]} Be7 {[%emt 0:00:09] 6...Be6 gains popularity.} 7. N5c3 {[%emt 0:00:12] [#] B32: Sicilian: Löwenthal and Kalashnikov Variations.} h6 $146 {[%emt 0:07:25]} ({Predecessor:} 7... Nf6 8. Na3 O-O 9. Nc2 Be6 10. Be2 Rc8 11. O-O a6 12. Be3 Nd7 13. Qd2 Nc5 14. b4 Nd7 {1-0 (31) Dominguez Perez,L (2754)-Cubas,J (2451) Chennai 2022}) 8. Nd5 {[%emt 0:01:32]} Bg5 {[%emt 0:00:16]} 9. Nbc3 {[%emt 0:02:08] White has an edge.} a6 {[%emt 0:05:29] Inhibits Nb5.} 10. Be3 {[%emt 0:08:26]} Bxe3 {[%emt 0:00:47]} 11. fxe3 {[%emt 0:05:33]} Nf6 {[%emt 0:09:31]} 12. Be2 {[%emt 0:05:05]} O-O {[%emt 0:02:55]} 13. O-O {[%emt 0:03:12]} Nxd5 {[%emt 0:00:43]} 14. Nxd5 {[%emt 0:00:24]} Ne7 {[%emt 0:04:55]} 15. b3 {[%emt 0:10:01]} Be6 {[%emt 0:04:02]} 16. Bg4 {[%emt 0:11:37]} (16. Qd2 $11) 16... Bxd5 {[%emt 0:28:35]} 17. cxd5 {[%emt 0:00:18]} b5 {[%emt 0:01:04]} 18. Rc1 {[%emt 0:08:08]} Qb6 {[%emt 0:01:21]} 19. Qd3 {[%emt 0:02:37]} a5 {[%emt 0:02:28]} 20. a3 {[%emt 0:04:47]} Ra7 {[%emt 0:04:35]} 21. Rc2 {[%emt 0:00:34]} b4 {[%emt 0:02:20]} 22. a4 {[%emt 0:00:12]} Rc7 {[%emt 0:01:49]} 23. Rfc1 {[%emt 0:01:20]} Rxc2 {[%emt 0:00:25]} 24. Rxc2 {[%emt 0:00:08]} g6 {[%emt 0:00:56]} 25. h4 {[%emt 0:05:46]} f5 {[%emt 0:03:19]} 26. Bf3 {[%emt 0:02:56]} f4 {[%emt 0:04:35]} 27. Kf2 {[%emt 0:01:32]} g5 {[%emt 0:01:15]} 28. h5 {[%emt 0:04:17]} g4 {[%emt 0:08:44]} 29. Bxg4 {[%emt 0:00:06]} fxe3+ {[%emt 0:00:08]} 30. Ke2 {[%emt 0:02:42]} Rf2+ {[%emt 0:00:49]} 31. Ke1 {[%emt 0:00:13]} Rxc2 {[%emt 0:04:21]} 32. Qxc2 $11 {[%emt 0:00:14][%mdl 4096] Endgame KQB-KQN} Qd4 {[%emt 0:00:04]} 33. Ke2 {[%emt 0:02:40]} Kg7 {[%emt 0:00:41] [#] ...Nxd5 is the strong threat.} 34. Bf3 {[%emt 0:00:41]} Kf6 {[%emt 0:00:25]} 35. Qd3 {[%emt 0:00:59]} Qb2+ {[%emt 0:00:51]} 36. Kxe3 {[%emt 0:00:46]} Nc8 $2 {[%emt 0:00:53][%mdl 8192] [#]} (36... Kg5 $1 $11 {and Black is okay.}) 37. Be2 $2 {[%emt 0:01:50]} (37. Qc4 $1 $18 {[%cal Rc4c8]} Ne7 38. Qc7) 37... Nb6 {[%emt 0:00:36] The position is equal.} 38. Kf3 {[%emt 0:06:37]} Nd7 {[%emt 0:00:15] And now ...Nc5 would win.} 39. Qe3 {[%emt 0:00:00]} Qc3 $1 {[%emt 0:00:00]} 40. Qxc3 {[%emt 0:00:00]} bxc3 {[%emt 0:00:00] KB-KN} 41. Bd1 {[%emt 0:09:33]} Nc5 {[%emt 0:02:48] White must now prevent ...Kg5.} 42. Ke3 {[%emt 0:00:43]} Kg5 {[%emt 0:01:18] Hoping for ...Kh4.} 43. g3 {[%emt 0:00:28]} Kf6 {[%emt 0:03:08] Threatens to win with ...Kg5.} 44. Bc2 {[%emt 0:02:00]} Kg5 {[%emt 0:01:31]} 45. Bd1 {[%emt 0:00:56]} Kf6 {[%emt 0:00:18] Strongly threatening ...Kg5.} 46. Bc2 {[%emt 0:00:04] Weighted Error Value: White=0.22 (precise) /Black=0.17 (very precise)} 1/2-1/2

[Event "Croatian 1B League 2022"]
[Site "Porec"]
[Date "2022.10.02"]
[Round "9.18"]
[White "Vujakovic, Branko"]
[Black "Novosel, Lovro"]
[Result "0-1"]
[ECO "B92"]
[WhiteElo "2286"]
[BlackElo "2274"]
[Annotator "TA"]
[PlyCount "120"]
[EventDate "2022.09.24"]
[EventType "team-tourn"]
[EventCountry "CRO"]
[SourceTitle "playchess.com"]
[Source "ChessBase"]
[SourceQuality "1"]
[TimeControl "40/5400+30:1800+30"]

{[%evp 22,120,0,0,8,8,2,0,12,-31,-30,-40,-35,-97,-95,-102,-66,-79,-19,-106,-100,-127,-116,-132,0,0,0,0,0,0,0,-66,0,-72,-43,-57,-11,-11,0,0,0,0,0,0,11,0,23,23,23,23,23,23,38,8,8,18,20,8,8,-29,-29,-87,-87,-87,-87,-87,-87,-87,-87,-167,-126,-1054,-765,-1000,-126,-126,-126,-1468,-178,-1207,-1250,-1114,-1097,-29959,-29962,-29965,-29967,-29965,-29963,-12795,-9941,-29968,-29969,-29978,-29979,-29979,-29980,-29980,-29981,-29979,-29980]} 1. e4 {[%emt 0:00:02]} c5 {[%emt 0:00:12]} 2. Nf3 {[%emt 0:00:09]} d6 {[%emt 0:00:10]} 3. Nc3 {[%emt 0:00:07]} Nf6 {[%emt 0:00:15]} 4. d4 {[%emt 0:00:06]} cxd4 {[%emt 0:00:05]} 5. Nxd4 {[%emt 0:00:07]} a6 {[%emt 0:00:05]} 6. Be2 {[%emt 0:00:06]} e5 {[%emt 0:00:44]} 7. Nb3 {[%emt 0:00:07]} Be7 {[%emt 0:00:31]} 8. O-O {[%emt 0:00:21]} O-O {[%emt 0:00:26]} 9. Be3 {[%emt 0:00:07]} Be6 {[%emt 0:00:15]} 10. Qd3 {[%emt 0:00:54]} Nbd7 {[%emt 0:00:21]} 11. Nd5 {[%emt 0:00:13]} Bxd5 {[%emt 0:00:12]} 12. exd5 {[%emt 0:00:02]} Ne8 {[%emt 0:00:27] B92: Sicilian Najdorf: 6 Be2.} 13. a4 {[%emt 0:01:11]} g6 {[%emt 0:01:54]} 14. a5 {[%emt 0:02:19]} Ng7 {[%emt 0:00:48] [#] The position is equal.} 15. g4 $146 {[%emt 0:14:55]} ({Predecessor:} 15. c4 Rc8 16. Rfe1 Re8 17. Bf1 Bh4 18. g3 Be7 19. Rac1 Nf5 20. Bd2 Ng7 21. Qc3 {½-½ (44) Kraft,D (2482)-Chesakov,L (2478) ICCF email 2019}) 15... f5 {[%emt 0:07:04]} 16. f3 {[%emt 0:00:25]} Bg5 {[%emt 0:04:35]} 17. Bf2 {[%emt 0:03:24]} (17. Nd2 $15) 17... Bf4 $17 {[%emt 0:17:14][%cal Oe5e4]} 18. Ra4 {[%emt 0:07:20] Inhibits e4.} Nf6 {[%emt 0:05:22]} 19. Rb4 {[%emt 0:03:50]} Qd7 {[%emt 0:01:22]} (19... fxg4 $17 20. fxg4 Nxg4 $1 21. Bxg4 Qg5) 20. h3 {[%emt 0:06:57]} (20. Rxf4 $11 exf4 21. g5) 20... h5 {[%emt 0:04:48]} 21. Nd2 {[%emt 0:14:40][%cal Ob4f4]} hxg4 {[%emt 0:04:33]} ({Much weaker is} 21... fxg4 $6 22. fxg4 hxg4 23. hxg4 $11) 22. hxg4 {[%emt 0:00:30]} fxg4 {[%emt 0:01:01]} (22... Rae8 $17 {aiming for ...Rf7.} 23. Be3 Qc7) 23. fxg4 $11 {[%emt 0:00:48]} Nxg4 {[%emt 0:02:51]} 24. Qh3 $1 {[%emt 0:02:08]} Bxd2 {[%emt 0:01:21] The board is on fire.} (24... Bh2+ $2 25. Kg2 Nf6 26. Qxd7 Nxd7 27. Kxh2 $18) 25. Rxg4 {[%emt 0:07:12] Strongly threatening Qd3.} Rf4 {[%emt 0:06:09]} ({Don't take} 25... Bxa5 26. Be3 $16 (26. Qh6 Rf6 $14)) 26. Qg2 {[%emt 0:02:01]} (26. Bg3 $11 Be3+ 27. Kh2 Rxg4 28. Bxg4) 26... Raf8 {[%emt 0:04:24] Black is more active.} (26... Rxg4 $15 27. Bxg4 Nf5) 27. Rxf4 {[%emt 0:00:25]} (27. Rxg6 $11 {remains equal.} Rxf2 28. Rxf2) 27... Rxf4 {[%emt 0:00:18]} 28. Qxg6 {[%emt 0:04:36]} Bxa5 {[%emt 0:00:43]} (28... Qh3 $1 $15) 29. Be3 {[%emt 0:00:27]} Rxf1+ {[%emt 0:02:26]} 30. Bxf1 {[%emt 0:00:02]} Bc7 {[%emt 0:14:24]} 31. Bd3 {[%emt 0:00:42]} Qh3 {[%emt 0:00:32] Against Qh7+} 32. Kf2 {[%emt 0:04:19]} Qh5 {[%emt 0:05:06]} 33. Kg2 {[%emt 0:03:33]} a5 {[%emt 0:06:22]} 34. Bh6 {[%emt 0:07:01][%csl Gh6][%cal Rg6g7] This bishop pair is nice.} Qxg6+ {[%emt 0:01:03]} 35. Bxg6 {[%emt 0:00:06][%mdl 4096] Endgame KBB-KBN} Bd8 {[%emt 0:00:26]} 36. Kf3 {[%emt 0:01:11][%mdl 1024] White has compensation.} Bf6 {[%emt 0:00:07]} 37. b3 {[%emt 0:00:47]} Kf8 {[%emt 0:00:06]} 38. Ke4 {[%emt 0:03:32]} Ke7 {[%emt 0:00:05]} 39. c4 {[%emt 0:06:31]} Kd7 {[%emt 0:00:55]} 40. Bxg7 {[%emt 0:00:00]} Bxg7 {[%emt 0:00:00] KB-KB} 41. Bf5+ {[%emt 0:16:43]} (41. Kd3 $1 $11) 41... Kc7 $17 {[%emt 0:00:13]} 42. Kd3 {[%emt 0:00:00][%cal Oc4c5]} Kb6 {[%emt 0:00:23]} 43. Bc8 {[%emt 0:00:46]} Bf6 {[%emt 0:01:21]} 44. Bg4 {[%emt 0:08:38]} Kc5 {[%emt 0:00:28][%cal Oe5e4]} 45. Be2 {[%emt 0:00:51]} (45. Bd7 $17) 45... b6 {[%emt 0:02:25][%cal Oe5e4]} 46. Bd1 $2 {[%emt 0:06:41][%mdl 8192] [#]} (46. Bh5 $17) 46... Kb4 $1 $19 {[%emt 0:00:23]} 47. Kc2 {[%emt 0:00:41]} e4 $2 {[%emt 0:00:33]} (47... a4 $19 {is more deadly.} 48. bxa4 Kxc4) 48. Be2 {[%emt 0:00:06]} Kc5 {[%emt 0:00:07][%cal Ob6b5] ...b5! is the strong threat.} 49. Bf1 $2 {[%emt 0:00:14][%mdl 8192]} (49. Bh5 $17) 49... Kd4 $2 {[%emt 0:00:07]} (49... b5 50. cxb5 Kxd5) 50. Be2 {[%emt 0:00:06]} (50. Bh3) 50... b5 {[%emt 0:02:03]} 51. cxb5 {[%emt 0:00:59]} Kxd5 {[%emt 0:00:06] White must now prevent ...Kc5.} 52. b6 {[%emt 0:00:59]} Kc6 {[%emt 0:00:24]} 53. Bc4 {[%emt 0:02:07]} d5 {[%emt 0:00:24][%cal Bd6d5,Bd5d4,Bd4d3][%mdl 32]} 54. b7 {[%emt 0:00:05]} Be5 {[%emt 0:00:04]} 55. Bf1 {[%emt 0:01:35]} Kxb7 {[%emt 0:00:06] ( -> ...Kc6)} 56. Bh3 {[%emt 0:00:11]} Kc6 {[%emt 0:00:09] Black mates.} 57. Bc8 {[%emt 0:00:14]} d4 {[%emt 0:00:19]} 58. Kd2 {[%emt 0:00:24]} Bf4+ {[%emt 0:00:08]} 59. Kc2 {[%emt 0:00:40]} d3+ {[%emt 0:00:17]} 60. Kc3 {[%emt 0:00:02]} Kc5 {[%emt 0:00:24] Weighted Error Value: White=0.72/Black=0.38} 0-1